fUSD/lending_fUSD_20260217
["ID","MTS","AMOUNT","RATE_DAILY","PERIOD"]
[405832830,1771348238376,-9999.99,8.531e-05,2]
[405832831,1771348238386,-9999.99,8.531e-05,2]
[405832834,1771348238396,-43057.18,8.531e-05,2]
[405832836,1771348238407,-270.43,8.54e-05,2]
[405832838,1771348238417,-612.38359105,8.7e-05,2]
[405832840,1771348238426,-959.17128435,8.7e-05,2]
[405832842,1771348238436,-820.45620703,8.7e-05,2]
[405832846,1771348238446,-889.81374569,8.7e-05,2]
[405832849,1771348238456,-434.49180413,8.7e-05,2]
[405832852,1771348238465,-491.39016495,8.7e-05,2]
[405832855,1771348238475,-610.87672269,8.7e-05,2]
[405832858,1771348238484,-616.56655877,8.7e-05,2]
[405832860,1771348238494,-250.0,8.735e-05,2]
[405832861,1771348238503,-213.804517,8.745e-05,2]
[405832863,1771348238513,-2500.0,8.798e-05,2]
[405832865,1771348238522,-500.0,8.897e-05,2]
[405832867,1771348238535,-231.66657512,8.897e-05,2]
[405832869,1771348238546,-463.78037272,8.897e-05,2]
[405832871,1771348238557,-500.0,8.897e-05,2]
[405832873,1771348238567,-500.0,8.897e-05,2]
[405832875,1771348238576,-500.0,8.897e-05,2]
[405832877,1771348238586,-500.0,8.897e-05,2]
[405832879,1771348238597,-500.0,8.897e-05,2]
[405832881,1771348238607,-500.0,8.897e-05,2]
[405832882,1771348238617,-500.0,8.897e-05,2]
[405832883,1771348238627,-500.0,8.897e-05,2]
[405832884,1771348238638,-543.4711523,8.897e-05,2]
[405832885,1771348238648,-500.0,8.897e-05,2]
[405832886,1771348238660,-500.0,8.897e-05,2]
[405832887,1771348238669,-500.0,8.897e-05,2]
[405832888,1771348238679,-500.0,8.897e-05,2]
[405832889,1771348238689,-500.0,8.897e-05,2]
[405832890,1771348238699,-500.0,8.897e-05,2]
[405832891,1771348238709,-500.0,8.897e-05,2]
[405832892,1771348238719,-500.0,8.897e-05,2]
[405832893,1771348238729,-500.0,8.897e-05,2]
[405832894,1771348238738,-500.0,8.897e-05,2]
[405832895,1771348238747,-350.0,8.897e-05,2]
[405832896,1771348238758,-272.22514453,8.897e-05,2]
[405832897,1771348238768,-500.0,8.897e-05,2]
[405832898,1771348238777,-573.23118542,8.897e-05,2]
[405832899,1771348238799,-256.56542,8.901e-05,2]
[405832900,1771348238810,-8587.62,8.998e-05,2]
[405832901,1771348238820,-333.04,9e-05,2]
[405832902,1771348238830,-270.43,9.015e-05,2]
[405832903,1771348238840,-1680.0,9.127e-05,2]
[405832904,1771348238850,-420.0,9.128e-05,2]
[405832905,1771348238860,-255.0,9.128e-05,2]
[405832906,1771348238870,-420.0,9.128e-05,2]
[405832907,1771348238879,-500.0,9.171e-05,2]
[405832908,1771348238890,-150.0,9.205e-05,2]
[405832909,1771348238900,-500.0,9.205e-05,2]
[405832910,1771348238910,-150.0,9.205e-05,2]
[405832911,1771348238920,-500.0,9.205e-05,2]
[405832912,1771348238930,-150.0,9.205e-05,2]
[405832913,1771348238940,-500.0,9.205e-05,2]
[405832914,1771348238950,-150.0,9.205e-05,2]
[405832915,1771348238960,-150.0,9.205e-05,2]
[405832916,1771348238970,-500.0,9.205e-05,2]
[405832917,1771348238980,-150.0,9.205e-05,2]
[405832918,1771348238990,-500.0,9.205e-05,2]
[405832919,1771348239000,-150.0,9.26e-05,2]
[405832920,1771348239010,-500.0,9.26e-05,2]
[405832921,1771348239019,-150.0,9.26e-05,2]
[405832922,1771348239033,-500.87477363,9.26e-05,2]
[405832923,1771348239045,-150.0,9.26e-05,2]
[405832924,1771348239054,-500.0,9.26e-05,2]
[405832925,1771348239064,-150.0,9.26e-05,2]
[405832926,1771348239073,-500.0,9.26e-05,2]
[405832927,1771348239084,-500.0,9.26e-05,2]
[405832928,1771348239094,-150.0,9.315e-05,2]
[405832929,1771348239104,-500.0,9.315e-05,2]
[405832930,1771348239115,-294.68179644,9.315e-05,2]
[405832931,1771348239125,-150.0,9.315e-05,2]
[405832932,1771348239135,-500.0,9.315e-05,2]
[405832933,1771348239146,-150.0,9.315e-05,2]
[405832934,1771348239155,-500.0,9.315e-05,2]
[405832935,1771348239166,-500.0,9.315e-05,2]
[405832936,1771348239175,-228.36591542,9.369e-05,2]
[405832937,1771348239185,-500.0,9.369e-05,2]
[405832938,1771348239195,-250.53819001,9.369e-05,2]
[405832939,1771348239205,-616.33885806,9.369e-05,2]
[405832940,1771348239214,-192.49812506,9.369e-05,2]
[405832941,1771348239225,-500.0,9.369e-05,2]
[405832942,1771348239235,-500.0,9.369e-05,2]
[405832943,1771348239245,-1471.46208079,9.378e-05,2]
[405832944,1771348239256,-2032.9993,9.379e-05,2]
[405832945,1771348239266,-500.0,9.424e-05,2]
[405832946,1771348239275,-500.0,9.424e-05,2]
[405832947,1771348239290,-500.0,9.424e-05,2]
[405832948,1771348239299,-500.0,9.445e-05,2]
[405832949,1771348239309,-172.2,9.468e-05,2]
[405832950,1771348239319,-500.0,9.479e-05,2]
[405832951,1771348239329,-500.0,9.479e-05,2]
[405832952,1771348239339,-500.0,9.479e-05,2]
[405832953,1771348239348,-303.68,9.486e-05,2]
[405832954,1771348239359,-270.43,9.489e-05,2]
[405832955,1771348239368,-366945.36307893,9.498e-05,2]
[405832956,1771348239378,-227.89,9.499e-05,2]
[405832957,1771348239388,-500.0,9.534e-05,2]
[405832958,1771348239398,-481.0942881,9.534e-05,2]
[405832959,1771348239408,-500.0,9.534e-05,2]
[405832960,1771348239417,-500.0,9.589e-05,2]
[405832961,1771348239427,-500.0,9.589e-05,2]
[405832962,1771348239437,-500.0,9.643e-05,2]
[405832963,1771348239446,-500.0,9.643e-05,2]
[405832964,1771348239455,-9999.99,9.67e-05,2]
[405832965,1771348239465,-14381.39,9.67e-05,2]
[405832966,1771348239475,-500.0,9.698e-05,2]
[405832967,1771348239484,-160.0,9.698e-05,2]
[405832968,1771348239494,-500.0,9.719e-05,2]
[405832969,1771348239503,-500.0,9.753e-05,2]
[405832970,1771348239513,-512.26030593,9.808e-05,2]
[405832971,1771348239523,-270.43,9.964e-05,2]
[405832972,1771348239535,-500.0,9.993e-05,2]
[405832973,1771348239545,-543.19683373,0.0001,2]
[405832974,1771348239555,-543.19683373,0.0001,2]
[405832975,1771348239564,-543.19683373,0.0001,2]
[405832976,1771348239575,-175.22048755,0.0001,2]
[405832977,1771348239584,-151.0,0.0001,2]
[405832978,1771348239594,-151.0,0.0001,2]
[405832979,1771348239603,-151.0,0.0001,2]
[405832980,1771348239613,-151.0,0.0001,2]
[405832981,1771348239623,-151.0,0.0001,2]
[405832982,1771348239632,-151.0,0.0001,2]
[405832983,1771348239641,-151.0,0.0001,2]
[405832984,1771348239651,-151.0,0.0001,2]
[405832985,1771348239660,-151.0,0.0001,2]
[405832986,1771348239669,-151.0,0.0001,2]
[405832987,1771348239679,-151.0,0.0001,2]
[405832988,1771348239688,-151.0,0.0001,2]
[405832989,1771348239698,-151.0,0.0001,2]
[405832990,1771348239707,-151.0,0.0001,2]
[405832991,1771348239716,-151.0,0.0001,2]
[405832992,1771348239727,-151.0,0.0001,2]
[405832993,1771348239736,-151.0,0.0001,2]
[405832994,1771348239745,-151.0,0.0001,2]
[405832995,1771348239755,-151.0,0.0001,2]
[405832996,1771348239764,-151.0,0.0001,2]
[405832997,1771348239774,-151.0,0.0001,2]
[405832998,1771348239787,-151.0,0.0001,2]
[405832999,1771348239797,-151.0,0.0001,2]
[405833000,1771348239807,-151.0,0.0001,2]
[405833001,1771348239817,-151.0,0.0001,2]
[405833002,1771348239826,-151.0,0.0001,2]
[405833003,1771348239836,-151.0,0.0001,2]
[405833004,1771348239845,-337.0,0.0001,2]
[405833005,1771348239855,-337.0,0.0001,2]
[405833006,1771348239864,-337.85061866,0.0001,2]
[405833007,1771348239874,-1233.6699943,0.0001,2]
[405833008,1771348239884,-1233.6699943,0.0001,2]
[405833009,1771348239894,-774.87858036,0.0001,2]
[405833010,1771348239903,-2351.0,0.0001004,2]
[405833011,1771348239913,-587.0,0.00010041,2]
[405833012,1771348239922,-433.0,0.00010041,2]
[405833013,1771348239932,-587.0,0.00010041,2]
[405833014,1771348239941,-104113.35978787,0.00010058,2]
[405833015,1771348239950,-13461.80580153,0.00010223,2]
[405833016,1771348239960,-500.0,0.00010267,2]
[405833017,1771348239969,-898.32890406,0.00010292,2]
[405833019,1771348239980,-250.0,0.00010403,2]
[405833021,1771348239989,-12064.82595421,0.00010406,2]
[405833022,1771348239999,-270.43,0.00010438,2]
[405833023,1771348240008,-500.0,0.00010541,2]
[405833024,1771348240018,-500.0,0.00010815,2]
[405833025,1771348240027,-150.0,0.00010859,2]
[405833029,1771348240297,-609.91819553,0.00010899,2]
[405833030,1771348240307,-214297.0,0.000109,2]
[405833031,1771348240316,-270.43,0.00010913,2]
[405833032,1771348240326,-166.66,0.00010959,2]
[405833033,1771348240335,-150.0,0.00010959,2]
[405833034,1771348240344,-479.5459,0.00010999,2]
[405833035,1771348240353,-305669.05161596,0.00010999,2]
[405833073,1771348241094,-2102.1548425,7.593e-05,2]
[405833075,1771348241105,-147.8451575,7.593e-05,2]
[405833077,1771348241115,-2250.0,7.664e-05,2]
[405833079,1771348241124,-337296.08628404,0.00010999,2]
[405833081,1771348241134,-3292.0,0.00011044,2]
[405833083,1771348241144,-736.0,0.00011045,2]
[405833085,1771348241154,-823.0,0.00011045,2]
[405833087,1771348241164,-823.0,0.00011045,2]
[405833089,1771348241174,-166.66,0.00011068,2]
[405833091,1771348241183,-500.0,0.00011089,2]
[405833093,1771348241192,-1233.6699943,0.00011089,2]
[405833095,1771348241201,-151.0,0.00011096,2]
[405833097,1771348241210,-30407.65827441,0.00011099,2]
[405833099,1771348241220,-30407.65827441,0.00011099,2]
[405833101,1771348241229,-30407.65827441,0.00011099,2]
[405833103,1771348241238,-30407.65827441,0.00011099,2]
[405833105,1771348241247,-30407.65827441,0.00011099,2]
[405833107,1771348241256,-30407.65827441,0.00011099,2]
[405833109,1771348241266,-30407.65827441,0.00011099,2]
[405833110,1771348241275,-30407.65827441,0.00011099,2]
[405833111,1771348241291,-30407.65827441,0.00011099,2]
[405833112,1771348241300,-30407.65827441,0.00011099,2]
[405833113,1771348241308,-64741.28845235,0.00011099,2]
[405833114,1771348241317,-64741.28845231,0.00011099,2]
[405833115,1771348241326,-64741.28845231,0.00011099,2]
[405833116,1771348241335,-64741.28845231,0.00011099,2]
[405833117,1771348241344,-64741.28845231,0.00011099,2]
[405833118,1771348241353,-64741.28845231,0.00011099,2]
[405833119,1771348241362,-64741.28845231,0.00011099,2]
[405833120,1771348241371,-64741.28845231,0.00011099,2]
[405833121,1771348241380,-64741.28845231,0.00011099,2]
[405833122,1771348241389,-64741.28845231,0.00011099,2]
[405833123,1771348241398,-153.0,0.00011099,3]
[405833124,1771348241407,-583.69347785,0.00011133,2]
[405833126,1771348241417,-166.66,0.00011178,2]
[405833128,1771348241426,-166.66,0.00011288,2]
[405833130,1771348241435,-5530.0,0.000113,3]
[405833132,1771348241444,-500.0,0.00011363,2]
[405833134,1771348241454,-270.43,0.00011387,2]
[405833136,1771348241463,-166.66,0.00011397,2]
[405833138,1771348241473,-152.0,0.00011441,2]
[405833140,1771348241483,-152.0,0.00011441,2]
[405833142,1771348241492,-166.66,0.00011507,2]
[405833144,1771348241501,-5530.0,0.000116,5]
[405833146,1771348241510,-500.0,0.00011637,2]
[405833148,1771348241519,-270.43,0.00011862,2]
[405833150,1771348241528,-500.0,0.00011911,2]
[405833153,1771348241541,-32850.4601,0.00011979,2]
[405833155,1771348241550,-1000.0,0.00011979,2]
[405833157,1771348241560,-259.7041,0.00011979,2]
[405833159,1771348241569,-4609.0,0.00012148,2]
[405833161,1771348241578,-1252.0,0.00012149,2]
[405833163,1771348241588,-1152.0,0.0001215,2]
[405833165,1771348241597,-1152.0,0.0001215,2]
[405833167,1771348241606,-500.0,0.00012173,2]
[405833168,1771348241615,-500.0,0.00012173,2]
[405833170,1771348241624,-500.0,0.00012173,2]
[405833173,1771348241634,-500.18695814,0.00012173,2]
[405833175,1771348241643,-500.0,0.00012173,2]
[405833176,1771348241652,-500.0,0.00012173,2]
[405833178,1771348241661,-500.0,0.00012173,2]
[405833180,1771348241669,-164.61380668,0.00012173,2]
[405833182,1771348241678,-500.25979785,0.00012173,2]
[405833184,1771348241687,-500.0,0.00012173,2]
[405833186,1771348241696,-500.0,0.00012173,2]
[405833188,1771348241705,-500.62727143,0.00012173,2]
[405833190,1771348241714,-500.0,0.00012173,2]
[405833192,1771348241723,-500.0,0.00012173,2]
[405833195,1771348241732,-500.604626,0.00012173,2]
[405833197,1771348241741,-500.0,0.00012173,2]
[405833199,1771348241750,-500.0,0.00012173,2]
[405833201,1771348241759,-500.0,0.00012173,2]
[405833203,1771348241768,-545.77855618,0.00012173,2]
[405833205,1771348241777,-218.33608313,0.00012173,2]
[405833207,1771348241790,-500.0,0.00012173,2]
[405833209,1771348241802,-500.0,0.00012173,2]
[405833211,1771348241811,-160.37289206,0.00012173,2]
[405833213,1771348241820,-500.0,0.00012173,2]
[405833215,1771348241829,-500.0,0.00012173,2]
[405833217,1771348241838,-160.1837527,0.00012173,2]
[405833218,1771348241848,-500.46642231,0.00012173,2]
[405833220,1771348241857,-500.0,0.00012173,2]
[405833223,1771348241867,-500.0,0.00012173,2]
[405833225,1771348241876,-239.8459294,0.00012173,2]
[405833227,1771348241888,-500.0,0.00012173,2]
[405833229,1771348241909,-500.0,0.00012173,2]
[405833231,1771348241918,-500.0,0.00012173,2]
[405833233,1771348241927,-500.0,0.00012173,2]
[405833235,1771348241935,-500.0,0.00012173,2]
[405833237,1771348241945,-500.0,0.00012173,2]
[405833239,1771348241955,-500.0,0.00012185,2]
[405833241,1771348241963,-270.43,0.00012336,2]
[405833243,1771348241972,-500.0,0.00012459,2]
[405833245,1771348241990,-173.57638878,0.00012468,2]
[405833246,1771348242000,-160.0,0.00012468,2]
[405833249,1771348242009,-609.9181955,0.00012649,2]
[405833251,1771348242018,-1000.0,0.00012721,2]
[405833252,1771348242028,-501.03554845,0.00012721,2]
[405833254,1771348242040,-571.65229745,0.00012721,2]
[405833256,1771348242049,-544.40507509,0.00012721,2]
[405833259,1771348242059,-608.22588366,0.00012721,2]
[405833260,1771348242071,-503.21146874,0.00012721,2]
[405833262,1771348242080,-1013.94571317,0.00012721,2]
[405833264,1771348242089,-1000.0,0.00012721,2]
[405833266,1771348242098,-500.0,0.00012721,2]
[405833268,1771348242108,-1000.0,0.00012721,2]
[405833270,1771348242117,-1000.0,0.00012721,2]
[405833272,1771348242126,-500.0,0.00012721,2]
[405833274,1771348242135,-1013.76878479,0.00012721,2]
[405833276,1771348242146,-1000.0,0.00012721,2]
[405833278,1771348242155,-1000.0,0.00012721,2]
[405833280,1771348242164,-1000.0,0.00012721,2]
[405833282,1771348242173,-1000.0,0.00012721,2]
[405833283,1771348242182,-615.3930462,0.00012721,2]
[405833284,1771348242190,-500.0,0.00012721,2]
[405833285,1771348242199,-501.82748142,0.00012721,2]
[405833286,1771348242208,-928.11420057,0.00012721,2]
[405833287,1771348242217,-1000.0,0.00012721,2]
[405833288,1771348242226,-1000.0,0.00012721,2]
[405833289,1771348242235,-500.0,0.00012733,2]
[405833291,1771348242244,-270.43,0.00012811,2]
[405833292,1771348242253,-500.0,0.00013007,2]
[405833293,1771348242262,-774.87858036,0.00013012,2]
[405833294,1771348242271,-227.89,0.00013059,2]
[405833295,1771348242280,-10292.65015621,0.00013096,2]
[405833296,1771348242291,-3737.63161,0.00013118,2]
[405833297,1771348242300,-1000.0,0.00013148,2]
[405833298,1771348242310,-303.68,0.00013239,2]
[405833299,1771348242319,-1494.73225771,0.00013268,2]
[405833300,1771348242329,-932.93855102,0.00013268,2]
[405833301,1771348242339,-500.0,0.00013268,2]
[405833302,1771348242350,-1500.0,0.00013268,2]
[405833303,1771348242360,-344.71223806,0.00013268,2]
[405833304,1771348242371,-500.0,0.00013281,2]
[405833305,1771348242380,-1601.842119,0.00013352,2]
[405833306,1771348242393,-6453.0,0.00013363,2]
[405833307,1771348242402,-304.0,0.00013365,2]
[405833308,1771348242412,-1613.0,0.00013365,2]
[405833309,1771348242421,-2129.0,0.00013369,2]
[405833310,1771348242430,-3240.0,0.00013425,2]
[405833311,1771348242439,-500.0,0.00013425,2]
[405833312,1771348242448,-500.0,0.00013425,2]
[405833313,1771348242458,-150.0,0.00013425,2]
[405833314,1771348242466,-500.0,0.0001348,2]
[405833315,1771348242476,-500.0,0.0001348,2]
[405833316,1771348242486,-150.0,0.0001348,2]
[405833317,1771348242495,-500.0,0.00013535,2]
[405833318,1771348242505,-500.0,0.00013535,2]
[405833319,1771348242514,-242.84628954,0.00013535,2]
[405833320,1771348242524,-500.0,0.00013555,2]
[405833321,1771348242533,-500.0,0.00013589,2]
[405833322,1771348242543,-500.0,0.00013589,2]
[405833323,1771348242552,-500.0,0.00013644,2]
[405833324,1771348242561,-153.2248447,0.00013644,2]
[405833325,1771348242571,-500.0,0.00013698,2]
[405833326,1771348242580,-500.0,0.00013698,2]
[405833327,1771348242589,-500.0,0.00013698,2]
[405833328,1771348242599,-500.0,0.00013698,2]
[405833329,1771348242608,-500.0,0.00013698,2]
[405833330,1771348242617,-500.0,0.00013698,2]
[405833331,1771348242626,-500.0,0.00013698,2]
[405833332,1771348242635,-500.0,0.00013698,2]
[405833333,1771348242644,-500.0,0.00013698,2]
[405833334,1771348242653,-391.46615766,0.00013698,2]
[405833335,1771348242662,-500.0,0.00013698,2]
[405833336,1771348242671,-500.0,0.00013698,2]
[405833337,1771348242682,-500.0,0.00013698,2]
[405833338,1771348242691,-500.0,0.00013698,2]
[405833339,1771348242702,-474.03942024,0.00013698,2]
[405833340,1771348242711,-2052.7,0.00013698,2]
[405833341,1771348242721,-2052.7,0.00013698,2]
[405833342,1771348242730,-2052.7,0.00013698,2]
[405833343,1771348242739,-2052.7,0.00013698,2]
[405833344,1771348242748,-2052.7,0.00013698,2]
[405833345,1771348242758,-2052.7,0.00013698,2]
[405833346,1771348242768,-2052.7,0.00013698,2]
[405833347,1771348242777,-2052.7,0.00013698,2]
[405833348,1771348242791,-2052.7,0.00013698,2]
[405833349,1771348242800,-2052.7,0.00013698,2]
[405833350,1771348242809,-2052.7,0.00013698,2]
[405833351,1771348242818,-2052.7,0.00013698,2]
[405833352,1771348242827,-2052.7,0.00013698,2]
[405833353,1771348242836,-2052.7,0.00013698,2]
[405833354,1771348242845,-2052.7,0.00013698,2]
[405833356,1771348242855,-2052.7,0.00013698,2]
[405833358,1771348242863,-500.0,0.00013698,2]
[405833360,1771348242872,-500.0,0.00013698,2]
[405833362,1771348242881,-500.0,0.00013698,2]
[405833363,1771348242891,-500.0,0.00013698,2]
[405833365,1771348242900,-500.0,0.00013698,2]
[405833366,1771348242911,-500.0,0.00013698,2]
[405833367,1771348242920,-500.0,0.00013698,2]
[405833368,1771348242929,-500.0,0.00013698,2]
[405833369,1771348242938,-586.00467181,0.00013698,2]
[405833370,1771348242947,-500.0,0.00013698,2]
[405833371,1771348242956,-500.0,0.00013698,2]
[405833372,1771348242965,-500.0,0.00013698,2]
[405833373,1771348242974,-321.35543779,0.00013698,2]
[405833374,1771348242983,-500.0,0.00013698,2]
[405833375,1771348242992,-500.0,0.00013698,2]
[405833376,1771348243002,-500.0,0.00013698,2]
[405833377,1771348243010,-500.0,0.00013698,2]
[405833378,1771348243019,-463.4906551,0.00013698,2]
[405833379,1771348243028,-500.0,0.00013698,2]
[405833380,1771348243045,-500.0,0.00013698,2]
[405833381,1771348243054,-509.4313423,0.00013698,2]
[405833383,1771348243063,-858.24,0.00013698,2]
[405833384,1771348243073,-858.24,0.00013698,2]
[405833385,1771348243082,-858.24,0.00013698,2]
[405833386,1771348243094,-858.24,0.00013698,2]
[405833387,1771348243103,-858.24,0.00013698,2]
[405833388,1771348243112,-858.24,0.00013698,2]
[405833389,1771348243121,-858.24,0.00013698,2]
[405833390,1771348243131,-858.24,0.00013698,2]
[405833391,1771348243140,-858.24,0.00013698,2]
[405833392,1771348243151,-858.24,0.00013698,2]
[405833393,1771348243162,-858.24,0.00013698,2]
[405833394,1771348243171,-858.24,0.00013698,2]
[405833396,1771348243180,-858.24,0.00013698,2]
[405833397,1771348243190,-858.24,0.00013698,2]
[405833398,1771348243199,-858.24,0.00013698,2]
[405833399,1771348243209,-858.24,0.00013698,2]
[405833400,1771348243218,-1013.23,0.00013698,2]
[405833401,1771348243227,-1013.23,0.00013698,2]
[405833402,1771348243236,-1013.23,0.00013698,2]
[405833403,1771348243245,-1013.23,0.00013698,2]
[405833404,1771348243254,-1013.23,0.00013698,2]
[405833405,1771348243263,-1013.23,0.00013698,2]
[405833406,1771348243273,-1013.23,0.00013698,2]
[405833407,1771348243286,-1013.23,0.00013698,2]
[405833409,1771348243295,-1013.23,0.00013698,2]
[405833411,1771348243304,-1013.23,0.00013698,2]
[405833412,1771348243313,-1013.23,0.00013698,2]
[405833413,1771348243322,-1013.23,0.00013698,2]
[405833414,1771348243331,-1013.23,0.00013698,2]
[405833415,1771348243340,-1013.23,0.00013698,2]
[405833416,1771348243350,-500.0,0.00013698,2]
[405833417,1771348243359,-1013.23,0.00013698,2]
[405833418,1771348243369,-500.0,0.00013698,2]
[405833419,1771348243379,-1013.23,0.00013698,2]
[405833420,1771348243388,-571.27519115,0.00013698,2]
[405833421,1771348243396,-1608.12,0.00013698,2]
[405833422,1771348243660,-1608.12,0.00013698,2]
[405833423,1771348243669,-1608.12,0.00013698,2]
[405833424,1771348243679,-1608.12,0.00013698,2]
[405833425,1771348243687,-1608.12,0.00013698,2]
[405833426,1771348243697,-1608.12,0.00013698,2]
[405833427,1771348243706,-1608.12,0.00013698,2]
[405833428,1771348243715,-1608.12,0.00013698,2]
[405833429,1771348243724,-1608.12,0.00013698,2]
[405833430,1771348243733,-1608.12,0.00013698,2]
[405833431,1771348243742,-1608.12,0.00013698,2]
[405833432,1771348243751,-1608.12,0.00013698,2]
[405833433,1771348243760,-1608.12,0.00013698,2]
[405833434,1771348243770,-1608.12,0.00013698,2]
[405833435,1771348243779,-1608.12,0.00013698,2]
[405833436,1771348243792,-1608.12,0.00013698,2]
[405833437,1771348243802,-500.0,0.00013698,2]
[405833438,1771348243811,-536.56841648,0.00013698,2]
[405833439,1771348243821,-500.0,0.00013698,2]
[405833440,1771348243830,-500.0,0.00013698,2]
[405833441,1771348243840,-500.0,0.00013698,2]
[405833442,1771348243849,-500.0,0.00013698,2]
[405833443,1771348243858,-500.0,0.00013698,2]
[405833444,1771348243867,-500.0,0.00013698,2]
[405833445,1771348243877,-500.0,0.00013698,2]
[405833446,1771348243886,-500.0,0.00013698,2]
[405833447,1771348243895,-500.0,0.00013698,2]
[405833448,1771348243904,-500.0,0.00013698,2]
[405833449,1771348243913,-500.0,0.00013698,2]
[405833450,1771348243923,-500.0,0.00013698,2]
[405833451,1771348243934,-500.0,0.00013698,2]
[405833452,1771348243943,-500.0,0.00013698,2]
[405833453,1771348243954,-500.0,0.00013698,2]
[405833454,1771348243963,-500.0,0.00013698,2]
[405833455,1771348243974,-546.97,0.00013698,2]
[405833456,1771348243983,-546.97,0.00013698,2]
[405833457,1771348243993,-546.97,0.00013698,2]
[405833458,1771348244002,-546.97,0.00013698,2]
[405833459,1771348244012,-546.97,0.00013698,2]
[405833460,1771348244021,-546.97,0.00013698,2]
[405833461,1771348244031,-546.97,0.00013698,2]
[405833462,1771348244044,-546.97,0.00013698,2]
[405833463,1771348244053,-546.97,0.00013698,2]
[405833465,1771348244062,-546.97,0.00013698,2]
[405833466,1771348244078,-546.97,0.00013698,2]
[405833467,1771348244088,-546.97,0.00013698,2]
[405833468,1771348244097,-546.97,0.00013698,2]
[405833469,1771348244106,-546.97,0.00013698,2]
[405833470,1771348244117,-546.97,0.00013698,2]
[405833471,1771348244127,-546.97,0.00013698,2]
[405833472,1771348244136,-1479.1,0.00013698,2]
[405833473,1771348244148,-1479.1,0.00013698,2]
[405833474,1771348244157,-1479.1,0.00013698,2]
[405833475,1771348244167,-1479.1,0.00013698,2]
[405833476,1771348244176,-1479.1,0.00013698,2]
[405833477,1771348244185,-1479.1,0.00013698,2]
[405833478,1771348244194,-1479.1,0.00013698,2]
[405833479,1771348244204,-1479.1,0.00013698,2]
[405833480,1771348244213,-1479.1,0.00013698,2]
[405833481,1771348244223,-1479.1,0.00013698,2]
[405833482,1771348244232,-1479.1,0.00013698,2]
[405833483,1771348244241,-1479.1,0.00013698,2]
[405833484,1771348244250,-1479.1,0.00013698,2]
[405833485,1771348244260,-1479.1,0.00013698,2]
[405833486,1771348244269,-1479.1,0.00013698,2]
[405833487,1771348244278,-1479.1,0.00013698,2]
[405833488,1771348244290,-500.0,0.00013698,2]
[405833489,1771348244300,-500.0,0.00013698,2]
[405833490,1771348244309,-500.0,0.00013698,2]
[405833491,1771348244318,-500.0,0.00013698,2]
[405833492,1771348244328,-500.0,0.00013698,2]
[405833493,1771348244337,-500.0,0.00013698,2]
[405833494,1771348244346,-500.0,0.00013698,2]
[405833495,1771348244355,-500.0,0.00013698,2]
[405833496,1771348244364,-500.0,0.00013698,2]
[405833497,1771348244373,-500.0,0.00013698,2]
[405833498,1771348244383,-500.0,0.00013698,2]
[405833499,1771348244393,-500.0,0.00013698,2]
[405833500,1771348244403,-200.92210999,0.00013698,2]
[405833501,1771348244412,-1546.47,0.00013698,2]
[405833502,1771348244422,-1546.47,0.00013698,2]
[405833503,1771348244431,-1546.47,0.00013698,2]
[405833504,1771348244441,-1546.47,0.00013698,2]
[405833505,1771348244450,-1546.47,0.00013698,2]
[405833506,1771348244460,-1546.47,0.00013698,2]
[405833507,1771348244470,-1546.47,0.00013698,2]